bitfinex-derivatives/quotes_BTCF0:USTF0_20251030
["timestamp","ask_amount","ask_price","bid_price","bid_amount"]
[1761865357001,1.06236174,107860.0,107850.0,0.10412]
[1761865358095,1.16230638,107860.0,107850.0,0.10412]
[1761865358895,0.47544147,107860.0,107850.0,0.10412]
[1761865359297,0.47344147,107860.0,107850.0,0.10412]
[1761865359509,0.37544147,107860.0,107850.0,0.10412]
[1761865359901,0.04774623,107860.0,107850.0,0.10412]
[1761865360106,0.04274623,107860.0,107850.0,0.10412]
[1761865360306,0.04674623,107860.0,107850.0,0.10412]
[1761865361905,0.01674623,107860.0,107850.0,0.10412]
[1761865362206,0.12421595,107880.0,107870.0,0.10501]
[1761865362404,0.2438611,107880.0,107870.0,0.10501]
[1761865363404,0.00076,107870.0,107860.0,0.10328]
[1761865363612,0.38776027,107870.0,107860.0,0.10328]
[1761865364005,0.03076,107870.0,107860.0,0.10328]
[1761865364507,0.03176,107870.0,107860.0,0.10328]
[1761865365009,0.13270464,107870.0,107860.0,0.10328]
[1761865365209,0.03276,107870.0,107860.0,0.10328]
[1761865366904,0.13270464,107870.0,107860.0,0.10328]
[1761865367109,0.50700027,107870.0,107860.0,0.10328]
[1761865367306,0.79700027,107870.0,107850.0,0.10319]
[1761865367510,1.11708027,107870.0,107850.0,0.10319]
[1761865368508,1.21698491,107870.0,107860.0,0.0631]
[1761865369611,1.21698491,107870.0,107860.0,0.10328]
[1761865371215,1.11708027,107870.0,107860.0,0.10328]
[1761865371716,0.76008,107870.0,107860.0,0.10328]
[1761865372311,0.40648926,107880.0,107870.0,0.10328]
[1761865372510,0.39644926,107880.0,107870.0,0.10328]
[1761865372705,0.6431411,107880.0,107870.0,0.10328]
[1761865373518,0.3241011,107880.0,107870.0,0.10328]
[1761865374217,1.00674081,107880.0,107860.0,0.0631]
[1761865374411,0.25700027,107870.0,107860.0,0.10328]
[1761865374609,0.3,107870.0,107860.0,0.10328]
[1761865374917,0.65700027,107870.0,107860.0,0.10328]
[1761865375420,0.75690491,107870.0,107860.0,0.10328]
[1761865377329,0.65700027,107870.0,107860.0,0.10328]
[1761865380124,0.3,107870.0,107860.0,0.10328]
[1761865380323,0.65700027,107870.0,107860.0,0.10328]
[1761865380628,1.21700027,107870.0,107850.0,0.10319]
[1761865380833,0.35700027,107860.0,107850.0,0.10319]
[1761865381125,0.36700027,107860.0,107850.0,0.10319]
[1761865381333,0.82302532,107860.0,107850.0,0.10319]
[1761865381731,0.92292996,107860.0,107850.0,0.10319]
[1761865382030,0.72302532,107860.0,107850.0,0.10619]
[1761865382928,0.82292996,107860.0,107850.0,0.10619]
[1761865386124,0.72302532,107860.0,107850.0,0.10619]
[1761865386829,0.82302532,107860.0,107850.0,0.10619]
[1761865387132,0.35162888,107880.0,107870.0,0.10328]
[1761865387336,1.36149352,107880.0,107870.0,0.10328]
[1761865387730,1.26158888,107880.0,107870.0,0.10328]
[1761865388530,1.26258888,107880.0,107870.0,0.10328]
[1761865388939,1.36249352,107880.0,107870.0,0.10328]
[1761865389340,1.26249352,107880.0,107870.0,0.10328]
[1761865389541,1.06072766,107880.0,107870.0,0.10328]
[1761865389739,1.27375298,107880.0,107870.0,0.10328]
[1761865390936,1.28783956,107880.0,107870.0,0.10328]
[1761865391139,0.00246,107870.0,107860.0,0.10639]
[1761865391337,0.69882792,107870.0,107860.0,0.10639]
[1761865392440,0.79873256,107870.0,107860.0,0.10639]
[1761865393038,0.79873256,107870.0,107850.0,0.06376]
[1761865393039,0.00246,107860.0,107850.0,0.06376]
[1761865393240,1.03879117,107860.0,107850.0,0.06376]
[1761865393442,1.03879117,107860.0,107850.0,0.1063]
[1761865393633,1.06031585,107860.0,107850.0,0.1063]
[1761865394139,1.16022049,107860.0,107850.0,0.1083]
[1761865394441,1.16022049,107860.0,107850.0,0.1093]
[1761865395637,1.16022049,107860.0,107850.0,0.0272]
[1761865395939,1.16022049,107860.0,107850.0,0.003]
[1761865396334,1.77673766,107860.0,107850.0,0.003]
[1761865397335,1.81008069,107860.0,107850.0,0.003]
[1761865398041,1.77673766,107860.0,107850.0,0.003]
[1761865398245,1.21007654,107860.0,107850.0,0.003]
[1761865399045,1.17673766,107860.0,107850.0,0.003]
[1761865399344,1.17427766,107860.0,107830.0,0.10307]
[1761865399536,0.21302532,107840.0,107830.0,0.10307]
[1761865399736,0.61455,107840.0,107830.0,0.10307]
[1761865400138,0.82757532,107840.0,107830.0,0.06452]
[1761865400333,1.42081319,107840.0,107830.0,0.003]
[1761865400547,1.42081319,107840.0,107830.0,0.008]
[1761865400845,1.20778787,107840.0,107830.0,0.04748]
[1761865401236,1.17445464,107840.0,107830.0,0.04748]
[1761865401639,1.20778787,107840.0,107830.0,0.04248]
[1761865401838,1.42081319,107840.0,107830.0,0.04748]
[1761865402032,1.28079243,107840.0,107830.0,0.04748]
[1761865402244,1.2474592,107840.0,107830.0,0.07166]
[1761865402442,1.2474592,107840.0,107830.0,0.11021]
[1761865402946,1.2474592,107840.0,107830.0,0.07166]
[1761865403147,1.2474592,107840.0,107830.0,0.11021]
[1761865403647,1.28079243,107840.0,107830.0,0.11021]
[1761865404249,1.2474592,107840.0,107830.0,0.11021]
[1761865404747,1.27244152,107840.0,107830.0,0.11021]
[1761865406638,1.30577475,107840.0,107830.0,0.11021]
[1761865408045,2.08546684,107840.0,107830.0,0.008]
[1761865408247,1.51034754,107840.0,107810.0,0.10221]
[1761865408455,0.21302532,107820.0,107810.0,0.10221]
[1761865408748,0.91980816,107820.0,107810.0,0.10221]
[1761865409145,0.91980816,107820.0,107810.0,0.06366]
[1761865409343,1.0197128,107820.0,107810.0,0.06366]
[1761865409737,1.2797128,107820.0,107810.0,0.10221]
[1761865409944,1.2797128,107820.0,107810.0,0.10421]
[1761865410550,0.96678284,107820.0,107810.0,0.10321]
[1761865410752,0.02152468,107820.0,107810.0,0.10521]
[1761865411052,0.61342035,107830.0,107820.0,0.10221]
[1761865411241,1.14011614,107830.0,107820.0,0.10221]
[1761865413153,0.81971614,107830.0,107820.0,0.10221]
[1761865413853,0.91962078,107830.0,107820.0,0.10221]
[1761865415245,0.81971614,107830.0,107820.0,0.10221]
[1761865415747,0.06669082,107830.0,107820.0,0.10221]
[1761865416458,0.04171266,107830.0,107820.0,0.10221]
[1761865416955,0.02171266,107830.0,107820.0,0.10221]
[1761865420442,0.78158704,107840.0,107820.0,0.10221]
[1761865420752,1.45651352,107840.0,107830.0,0.09933]
[1761865420952,1.48148534,107840.0,107830.0,0.09933]
[1761865421349,1.45651352,107840.0,107830.0,0.09933]
[1761865421550,1.48149192,107840.0,107830.0,0.09933]
[1761865422257,1.45651352,107840.0,107830.0,0.09933]
[1761865423158,1.45851352,107840.0,107830.0,0.09933]
[1761865423354,1.5874774,107840.0,107830.0,0.09933]
[1761865423653,1.757972,107840.0,107830.0,0.02123]
[1761865423863,1.80783502,107840.0,107830.0,0.02123]
[1761865424056,1.80783502,107840.0,107830.0,0.06115]
[1761865424361,1.80783502,107840.0,107830.0,0.09977]
[1761865424956,1.757972,107840.0,107830.0,0.09977]
[1761865427264,1.77453081,107840.0,107830.0,0.09977]
[1761865428354,1.6373971,107840.0,107830.0,0.09977]
[1761865428564,1.48762944,107840.0,107830.0,0.09977]
[1761865428767,1.53749246,107840.0,107830.0,0.09977]
[1761865429062,1.21705246,107840.0,107830.0,0.09977]
[1761865429251,1.53729246,107840.0,107830.0,0.09977]
[1761865429855,1.5155798,107840.0,107830.0,0.09977]
[1761865430054,1.53734849,107840.0,107830.0,0.09977]
[1761865430264,1.58739011,107840.0,107830.0,0.09977]
[1761865430457,1.63725313,107840.0,107830.0,0.09977]
[1761865431059,1.53734849,107840.0,107830.0,0.09977]
[1761865431563,1.12748547,107840.0,107830.0,0.09977]
[1761865431863,0.80724547,107840.0,107830.0,0.09977]
[1761865434363,0.8322676,107840.0,107830.0,0.09977]
[1761865434755,0.29328429,107840.0,107830.0,0.09977]
[1761865435662,0.25364631,107840.0,107830.0,0.09977]
[1761865436063,0.22027973,107840.0,107830.0,0.09977]
[1761865438266,0.04978513,107840.0,107830.0,0.2730646]
[1761865438564,0.22027973,107840.0,107830.0,0.2702646]
[1761865439067,0.22027973,107840.0,107830.0,0.09977]
[1761865443268,0.22021043,107840.0,107830.0,0.69977]
[1761865444067,0.22021043,107840.0,107830.0,0.09977]
[1761865444271,0.23021043,107840.0,107830.0,0.09977]
[1761865444770,0.26357701,107840.0,107830.0,0.09977]
[1761865444966,0.23021043,107840.0,107830.0,0.09977]
[1761865445273,0.024763,107840.0,107830.0,0.5932353]
[1761865445662,0.15351084,107860.0,107850.0,0.07854]
[1761865445871,0.02502213,107870.0,107860.0,0.09977]
[1761865446064,0.08,107870.0,107860.0,0.2701953]
[1761865446873,0.08,107870.0,107860.0,0.09977]
[1761865447171,0.2534253,107870.0,107860.0,0.09977]
[1761865447375,0.2554253,107870.0,107860.0,0.09977]
[1761865448276,0.085,107870.0,107860.0,0.09977]
[1761865448774,0.083,107870.0,107860.0,0.09977]
[1761865449073,0.083,107870.0,107860.0,0.2701953]
[1761865449272,0.083,107870.0,107860.0,0.8701953]
[1761865449968,0.083,107870.0,107860.0,0.2701953]
[1761865450866,0.003,107870.0,107860.0,0.2701953]
[1761865451471,0.0138024,107880.0,107870.0,0.09181]
[1761865451671,0.1,107880.0,107870.0,0.5825553]
[1761865452374,0.1,107880.0,107870.0,0.41213]
[1761865452574,0.101,107880.0,107870.0,0.41213]
[1761865453077,0.2714253,107880.0,107870.0,0.41209]
[1761865453279,0.2724253,107880.0,107870.0,0.41209]
[1761865454276,0.2724253,107880.0,107870.0,0.09181]
[1761865454668,0.2724253,107880.0,107870.0,0.41205]
[1761865455381,0.45888748,107880.0,107870.0,0.09181]
[1761865455578,0.47352895,107880.0,107870.0,0.09181]
[1761865456278,0.72352895,107880.0,107870.0,0.09181]
[1761865456977,0.82343359,107880.0,107870.0,0.09181]
[1761865457683,0.74507235,107880.0,107870.0,0.09181]
[1761865458872,0.38818487,107880.0,107870.0,0.09181]
[1761865462978,0.74507235,107880.0,107870.0,0.09181]
[1761865463178,0.77009448,107880.0,107870.0,0.09181]
[1761865463385,0.77009448,107880.0,107870.0,0.05994]
[1761865463582,0.77009448,107880.0,107870.0,0.02002]
[1761865463779,0.86999912,107880.0,107870.0,0.02002]
[1761865464180,0.82343359,107880.0,107870.0,0.02002]
[1761865464381,0.8699243,107880.0,107870.0,0.02002]
[1761865464972,0.77001966,107880.0,107870.0,0.0887]
[1761865466281,0.41313218,107880.0,107870.0,0.0887]
[1761865471084,0.44649876,107880.0,107870.0,0.0887]
[1761865472884,0.5464034,107880.0,107870.0,0.0887]
[1761865473079,0.52147553,107880.0,107870.0,0.0887]
[1761865473386,0.42157089,107880.0,107870.0,0.0887]
[1761865473684,0.77845837,107880.0,107870.0,0.0887]
[1761865474084,0.82832139,107880.0,107870.0,0.0887]
[1761865474279,0.77845837,107880.0,107870.0,0.0887]
[1761865474686,0.42157089,107880.0,107870.0,0.0887]
[1761865474878,0.74185089,107880.0,107870.0,0.0887]
[1761865475078,0.42148688,107880.0,107870.0,0.0887]
[1761865475278,0.44651302,107880.0,107870.0,0.0887]
[1761865475681,0.42148688,107880.0,107870.0,0.0887]
[1761865475883,0.44651289,107880.0,107870.0,0.0887]
[1761865476388,0.41314631,107880.0,107870.0,0.0887]
[1761865481484,0.58344487,107880.0,107870.0,0.0887]
[1761865482283,0.61681145,107880.0,107870.0,0.0887]
[1761865484599,0.58344487,107880.0,107870.0,0.0887]
[1761865486792,0.762084,107880.0,107870.0,0.02002]
[1761865486992,0.59178544,107880.0,107870.0,0.08422]
[1761865487194,0.69169008,107880.0,107870.0,0.08422]
[1761865487893,0.86198864,107880.0,107860.0,0.08543]
[1761865488091,0.19532598,107870.0,107860.0,0.08543]
[1761865488299,0.22680481,107870.0,107860.0,0.08543]
[1761865489294,0.22680481,107870.0,107860.0,0.08643]
[1761865489894,0.37654625,107870.0,107860.0,0.08743]
[1761865490196,0.05650625,107870.0,107860.0,0.08743]
[1761865491003,0.05650625,107870.0,107860.0,0.08643]
[1761865491798,0.05650625,107870.0,107860.0,0.08543]
[1761865492102,0.05750625,107870.0,107860.0,0.08543]
[1761865495498,0.03247883,107870.0,107860.0,0.08543]
[1761865496098,0.03602742,107870.0,107860.0,0.08543]
[1761865496300,0.05750625,107870.0,107860.0,0.08543]
[1761865496597,0.03247883,107870.0,107860.0,0.08543]
[1761865498100,0.03602742,107870.0,107860.0,0.08543]
[1761865498396,0.05750625,107870.0,107860.0,0.08543]
[1761865498597,0.22780481,107870.0,107860.0,0.08543]
[1761865500500,0.32770945,107870.0,107860.0,0.08543]
[1761865501403,0.36107603,107870.0,107860.0,0.08543]
[1761865503206,0.32770945,107870.0,107860.0,0.08543]
[1761865503504,0.32777383,107870.0,107860.0,0.08543]
[1761865503704,0.22786919,107870.0,107860.0,0.08543]
[1761865504200,0.38823213,107870.0,107860.0,0.08543]
[1761865504407,1.10959725,107870.0,107850.0,0.02123]
[1761865504594,0.88956445,107860.0,107840.0,0.08543]
[1761865504794,0.36575493,107850.0,107840.0,0.05561]
[1761865504994,0.72060034,107850.0,107840.0,0.05561]
[1761865505197,0.69557129,107850.0,107840.0,0.05561]
[1761865505506,1.02058296,107850.0,107840.0,0.02123]
[1761865505696,1.1204876,107850.0,107830.0,0.08278]
[1761865505896,0.34072588,107840.0,107830.0,0.08278]
[1761865506198,0.39220471,107840.0,107830.0,0.08278]
[1761865507613,0.71232471,107840.0,107830.0,0.08278]
[1761865508206,0.71232471,107840.0,107830.0,0.08478]
[1761865517804,0.22184177,107840.0,107830.0,0.25514294]
[1761865518008,0.02147883,107840.0,107830.0,0.25514294]
[1761865518217,0.26446839,107850.0,107840.0,0.0711]
[1761865518401,0.53446805,107850.0,107840.0,0.24146294]
[1761865518606,0.46186336,107850.0,107840.0,0.24146294]
[1761865518803,0.29150042,107850.0,107840.0,0.24146294]
[1761865519012,0.46186336,107850.0,107840.0,0.24146294]
[1761865519412,0.46186336,107850.0,107840.0,0.0711]
[1761865520916,0.46186336,107850.0,107840.0,0.0721]
[1761865527611,0.29150042,107850.0,107840.0,0.0721]
[1761865527820,0.46186336,107850.0,107840.0,0.0721]
[1761865528021,0.19186336,107850.0,107840.0,0.24246294]
[1761865528217,0.02150042,107850.0,107840.0,0.24246294]
[1761865538437,0.02150042,107850.0,107840.0,0.41562588]
[1761865539133,0.29049674,107870.0,107860.0,0.0711]
[1761865539438,0.35204179,107870.0,107860.0,0.0711]
[1761865539826,0.18167885,107870.0,107860.0,0.24146294]
[1761865540035,0.06154505,107870.0,107860.0,0.41182588]
[1761865540234,0.06154505,107870.0,107860.0,0.24146294]
[1761865540733,0.06354505,107870.0,107860.0,0.24146294]
[1761865540936,0.02354505,107870.0,107860.0,0.24146294]
[1761865541438,0.02254505,107870.0,107860.0,0.24246294]
[1761865542236,0.02254505,107870.0,107860.0,0.41562588]
[1761865542430,0.01464147,107880.0,107870.0,0.06688]
[1761865542626,0.21689593,107890.0,107880.0,0.05088]
[1761865542822,0.15653156,107890.0,107880.0,0.23541294]
[1761865543125,0.1463971,107890.0,107880.0,0.23541294]
[1761865543329,0.0363971,107890.0,107880.0,0.40577588]
[1761865543634,0.0363971,107890.0,107880.0,0.23541294]
[1761865543831,0.0373971,107890.0,107880.0,0.40577588]
[1761865544231,0.01587721,107890.0,107880.0,0.40577588]
[1761865545040,0.01587721,107890.0,107880.0,0.23821294]
[1761865545339,0.01587721,107890.0,107880.0,0.23541294]
[1761865545541,0.01587721,107890.0,107880.0,0.40857588]
[1761865546142,0.01687721,107890.0,107880.0,0.23541294]
[1761865547938,0.01687721,107890.0,107880.0,0.40577588]
[1761865548137,0.19537461,107910.0,107880.0,0.40857588]
[1761865548330,0.30146791,107910.0,107900.0,0.23541294]
[1761865548532,0.31598549,107910.0,107900.0,0.23541294]
[1761865549033,0.31598549,107910.0,107900.0,0.23821294]
[1761865549239,0.31598549,107910.0,107900.0,0.23541294]
[1761865549540,0.32098549,107910.0,107900.0,0.23541294]
[1761865550442,0.29851758,107910.0,107900.0,0.23541294]
[1761865550639,0.30051758,107910.0,107900.0,0.23541294]
[1761865550838,0.47088052,107910.0,107900.0,0.23541294]
[1761865552342,0.30051758,107910.0,107900.0,0.23541294]
[1761865554042,0.47088052,107910.0,107900.0,0.23541294]
[1761865554342,0.30051758,107910.0,107900.0,0.23541294]
[1761865556135,0.30051758,107910.0,107900.0,0.40577588]
[1761865557640,0.47088052,107910.0,107900.0,0.23541294]
[1761865560149,0.30051758,107910.0,107900.0,0.23541294]
[1761865561943,0.47088052,107910.0,107900.0,0.23541294]
[1761865564049,0.47088052,107910.0,107900.0,0.06505]
[1761865564351,0.47088052,107910.0,107900.0,0.38493]
[1761865565553,0.4920764,107910.0,107900.0,0.38493]
[1761865565746,0.4707343,107910.0,107900.0,0.38493]
[1761865566153,0.4920764,107910.0,107900.0,0.38493]
[1761865567352,0.32185968,107910.0,107900.0,0.38493]
[1761865568341,0.32185968,107910.0,107900.0,0.55514672]
[1761865568552,0.30051758,107910.0,107900.0,0.55514672]
[1761865568751,0.3073773,107910.0,107900.0,0.55514672]
[1761865568955,0.006,107910.0,107900.0,0.55514672]
[1761865569459,0.006,107910.0,107900.0,0.55794672]
[1761865571247,0.02740299,107910.0,107900.0,0.55794672]
[1761865571952,0.02740299,107910.0,107900.0,0.55514672]
[1761865575362,0.02740299,107910.0,107900.0,1.15514672]
[1761865578160,0.02740299,107910.0,107900.0,0.55794672]
[1761865578461,0.02740299,107910.0,107900.0,1.15794672]
[1761865578658,0.03336658,107930.0,107920.0,0.05643]
[1761865578966,0.1,107930.0,107920.0,0.54644672]
[1761865579561,0.01366742,107930.0,107920.0,0.54644672]
[1761865579763,0.007,107930.0,107920.0,0.54644672]
[1761865580762,0.04684764,107940.0,107930.0,0.05643]
[1761865580954,0.15684764,107940.0,107930.0,0.05643]
[1761865581155,0.12348106,107940.0,107930.0,0.05643]
[1761865581965,0.15684764,107940.0,107930.0,0.05643]
[1761865582357,0.12348106,107940.0,107930.0,0.05643]
[1761865583966,0.12348106,107940.0,107930.0,0.06043]
[1761865584158,0.12348106,107940.0,107930.0,0.06143]
[1761865589971,0.4639145,107940.0,107930.0,0.38119]
[1761865590154,0.4639145,107940.0,107930.0,0.06143]
[1761865590358,0.29369778,107940.0,107930.0,0.06143]
[1761865590758,0.29369778,107940.0,107930.0,0.06343]
[1761865590958,1.3839145,107940.0,107930.0,0.06343]
[1761865591165,1.51718572,107940.0,107930.0,0.06343]
[1761865591364,0.91718572,107940.0,107930.0,0.06343]
[1761865591663,0.91718572,107940.0,107930.0,0.06443]
[1761865591867,0.746969,107940.0,107930.0,0.06443]
[1761865592267,0.746969,107940.0,107930.0,0.06243]
[1761865592569,0.746969,107940.0,107930.0,0.05843]
[1761865593370,1.53644216,107940.0,107920.0,0.01333]
[1761865593564,0.20626666,107930.0,107920.0,0.01333]
[1761865593771,1.06602666,107930.0,107920.0,0.01333]
[1761865594465,1.1659313,107930.0,107920.0,0.01333]
[1761865594666,1.1631713,107930.0,107920.0,0.03539]
[1761865594864,1.1631713,107930.0,107920.0,0.05643]
[1761865595065,1.06326666,107930.0,107920.0,0.05643]
[1761865595773,1.06602666,107930.0,107920.0,0.03739]
[1761865596162,1.1659313,107930.0,107920.0,0.03739]
[1761865596673,1.1659313,107930.0,107920.0,0.01533]
[1761865597264,1.1659313,107930.0,107920.0,0.01333]
[1761865598874,1.7659313,107930.0,107920.0,0.01333]
[1761865599770,1.7659313,107930.0,107920.0,0.03539]
[1761865601270,1.7659313,107930.0,107920.0,0.01333]
[1761865602779,1.7631713,107930.0,107920.0,0.01333]
[1761865603079,1.7631713,107930.0,107920.0,0.03489]
[1761865603780,1.7631713,107930.0,107920.0,0.05817]
[1761865604280,1.72988136,107930.0,107920.0,0.05817]
[1761865604983,1.62997672,107930.0,107920.0,0.05817]
[1761865605179,1.66326666,107930.0,107920.0,0.05817]
[1761865606281,1.7631713,107930.0,107920.0,0.05817]
[1761865606580,1.7631713,107930.0,107920.0,0.01333]
[1761865606769,1.7631713,107930.0,107920.0,0.03489]
[1761865608285,1.7659313,107930.0,107920.0,0.03489]
[1761865608585,1.7659313,107930.0,107900.0,0.03745]
[1761865608586,0.00276,107920.0,107900.0,0.03745]
[1761865608884,0.66023344,107910.0,107900.0,0.01417]
[1761865609074,1.29023344,107910.0,107900.0,0.01417]
[1761865609691,1.36440635,107910.0,107900.0,0.01417]
[1761865609899,1.46431099,107910.0,107900.0,0.01717]
[1761865610098,1.46431099,107910.0,107900.0,0.01817]
[1761865610299,1.46711099,107910.0,107900.0,0.01817]
[1761865611097,1.46711099,107910.0,107900.0,0.004]
[1761865611400,2.10040093,107910.0,107890.0,0.01333]
[1761865611590,1.32738421,107910.0,107900.0,0.003]
[1761865611990,1.33018421,107910.0,107900.0,0.003]
[1761865612702,1.33018421,107910.0,107890.0,0.01333]
[1761865612703,1.55026395,107910.0,107880.0,0.05773]
[1761865612898,0.17021672,107890.0,107880.0,0.05773]
[1761865613096,0.84001672,107890.0,107880.0,0.05773]
[1761865614094,0.84001672,107890.0,107880.0,0.06073]
[1761865614802,0.84001672,107890.0,107880.0,0.06473]
[1761865615400,0.84281672,107890.0,107880.0,0.01589]
[1761865615599,0.94272136,107890.0,107880.0,0.01989]
[1761865616400,0.84281672,107890.0,107880.0,0.06473]
[1761865616606,0.84001672,107890.0,107880.0,0.06473]
[1761865616905,0.86141783,107890.0,107880.0,0.06473]
[1761865617206,0.86141783,107890.0,107880.0,0.06173]
[1761865617705,0.96132247,107890.0,107880.0,0.06173]
[1761865618406,0.96332247,107890.0,107880.0,0.05773]
[1761865620409,0.69320111,107890.0,107880.0,0.05773]
[1761865620800,0.86341783,107890.0,107880.0,0.05773]
[1761865621510,0.96332247,107890.0,107880.0,0.05773]
[1761865623410,1.13633919,107890.0,107870.0,0.03452428]
[1761865623708,0.34043344,107880.0,107870.0,0.05780428]
[1761865623908,0.76183455,107880.0,107870.0,0.05780428]
[1761865624599,0.86173919,107880.0,107870.0,0.05780428]
[1761865625395,0.86201479,107880.0,107870.0,0.05780428]
[1761865625802,1.03236931,107880.0,107870.0,0.05780428]
[1761865626007,1.03236931,107880.0,107870.0,0.01296428]
[1761865626210,1.03236931,107880.0,107860.0,0.05773]
[1761865626510,0.66054904,107870.0,107860.0,0.05773]
[1761865626809,0.89195015,107870.0,107860.0,0.05773]
[1761865627210,0.96735188,107870.0,107860.0,0.05773]
[1761865627412,1.06725652,107870.0,107860.0,0.05773]
[1761865628105,1.06725652,107870.0,107860.0,0.05973]
[1761865628311,1.49725652,107870.0,107860.0,0.05973]
[1761865631114,1.51003302,107870.0,107860.0,0.05973]
[1761865635209,1.51003302,107870.0,107860.0,0.01489]
[1761865635410,1.51003302,107870.0,107860.0,0.002]
[1761865635801,1.16932398,107870.0,107860.0,0.06097]
[1761865636018,1.51003302,107870.0,107860.0,0.06097]
[1761865638013,1.54332296,107870.0,107860.0,0.06097]
[1761865641015,1.59318598,107870.0,107860.0,0.06097]
[1761865642221,1.59318598,107870.0,107860.0,0.03835]
[1761865642420,1.59326598,107870.0,107860.0,0.06016]
[1761865643615,1.55997604,107870.0,107860.0,0.01504]
[1761865643817,1.56277604,107870.0,107850.0,0.04733]
[1761865644014,0.37401845,107860.0,107850.0,0.04733]
[1761865644212,0.71541956,107860.0,107850.0,0.04733]
[1761865644414,0.71541956,107860.0,107850.0,0.00419]
[1761865644717,0.88577408,107860.0,107850.0,0.00419]
[1761865645019,0.88577408,107860.0,107850.0,0.00719]
[1761865645209,0.98567872,107860.0,107850.0,0.00719]
[1761865645718,0.98847872,107860.0,107850.0,0.00819]
[1761865645912,1.32360085,107860.0,107840.0,0.03422]
[1761865646115,1.32360085,107860.0,107830.0,0.05603]
[1761865646116,0.68561622,107850.0,107830.0,0.05603]
[1761865646320,0.17035452,107840.0,107830.0,0.05603]
[1761865646520,0.53709733,107840.0,107830.0,0.05603]
[1761865646711,0.95709733,107840.0,107830.0,0.05603]
[1761865647319,1.05500197,107840.0,107830.0,0.05903]
[1761865648827,1.08831138,107840.0,107830.0,0.03722]
[1761865649019,1.08831138,107840.0,107830.0,0.0578]
[1761865649611,1.08831138,107840.0,107830.0,0.03522]
[1761865650223,1.08831138,107840.0,107830.0,0.01389]
[1761865650426,1.08831138,107840.0,107830.0,0.001]
[1761865650727,1.08831138,107840.0,107830.0,0.03649]
[1761865651318,1.08831138,107840.0,107820.0,0.01285]
[1761865651319,1.8586659,107840.0,107820.0,0.03464]
[1761865651524,0.68565622,107830.0,107820.0,0.03464]
[1761865651726,1.29705733,107830.0,107820.0,0.03464]
[1761865652520,1.39696197,107830.0,107820.0,0.01285]
[1761865652726,1.39696197,107830.0,107820.0,0.01385]
[1761865653032,1.39976197,107830.0,107820.0,0.001]
[1761865653330,1.4080842,107830.0,107820.0,0.001]
[1761865653831,1.06737516,107830.0,107820.0,0.001]
[1761865654325,1.1409577,107830.0,107810.0,0.03464]
[1761865654532,1.1409577,107830.0,107820.0,0.001]
[1761865654724,1.1381577,107830.0,107820.0,0.001]
[1761865654924,1.48166674,107830.0,107820.0,0.001]
[1761865655521,1.48166674,107830.0,107810.0,0.06022]
[1761865655730,0.36563872,107820.0,107810.0,0.06022]
[1761865656028,0.95703983,107820.0,107810.0,0.06022]
[1761865656229,0.93211015,107820.0,107810.0,0.06022]
[1761865656622,1.03201479,107820.0,107810.0,0.06022]
[1761865656830,1.03201479,107820.0,107810.0,0.06222]
[1761865657127,0.86166027,107820.0,107810.0,0.05922]
[1761865657430,1.03201479,107820.0,107810.0,0.05922]
[1761865658329,1.03201479,107820.0,107810.0,0.01685]
[1761865658330,1.20236931,107820.0,107810.0,0.01685]
[1761865659429,1.23009899,107820.0,107800.0,0.04437]
[1761865659620,0.66070904,107810.0,107790.0,0.03559373]
[1761865659824,0.34070904,107800.0,107790.0,0.05817373]
[1761865660025,0.46211015,107800.0,107790.0,0.05817373]
[1761865660225,0.12140111,107800.0,107790.0,0.05817373]
[1761865660528,0.46211015,107800.0,107790.0,0.05817373]
[1761865660826,0.56201479,107800.0,107790.0,0.06417373]
[1761865661018,0.5746254,107800.0,107790.0,0.06417373]
[1761865661538,0.47772076,107800.0,107790.0,0.05817373]
[1761865661730,0.47972076,107800.0,107790.0,0.05817373]
[1761865664833,1.09007528,107800.0,107780.0,0.01067703]
[1761865665037,0.66074904,107790.0,107770.0,0.05751]
[1761865665232,0.34070904,107780.0,107770.0,0.05751]
[1761865665537,0.79211015,107780.0,107770.0,0.03647]
[1761865665735,0.79211015,107780.0,107760.0,0.05751]
[1761865665736,0.96246467,107780.0,107760.0,0.05751]
[1761865666034,0.49099621,107770.0,107760.0,0.05751]
[1761865666236,0.72267015,107770.0,107760.0,0.05751]
[1761865666822,0.65222027,107770.0,107760.0,0.05751]
[1761865667035,0.97222027,107770.0,107760.0,0.05751]
[1761865667337,1.14257479,107770.0,107760.0,0.05751]
[1761865667640,1.14457479,107770.0,107760.0,0.05851]
[1761865668122,1.14457479,107770.0,107760.0,0.05751]
[1761865668321,1.14557479,107770.0,107760.0,0.05751]
[1761865670530,1.04574424,107770.0,107760.0,0.05751]
[1761865670730,1.04574386,107770.0,107760.0,0.05751]
[1761865670932,1.04567015,107770.0,107760.0,0.05751]
[1761865671237,1.12086732,107770.0,107760.0,0.05751]
[1761865671630,1.22077196,107770.0,107760.0,0.05751]
[1761865671831,1.12086732,107770.0,107760.0,0.05751]
[1761865673539,0.9505128,107770.0,107760.0,0.05751]
[1761865674235,0.95061653,107770.0,107760.0,0.05751]
[1761865674439,0.9505128,107770.0,107760.0,0.05751]
[1761865674836,0.78015828,107770.0,107760.0,0.05751]
[1761865675036,0.9505128,107770.0,107760.0,0.05751]
[1761865675838,0.95061121,107770.0,107760.0,0.05751]
[1761865676039,1.39122449,107770.0,107750.0,0.0571]
[1761865676228,0.34078692,107760.0,107750.0,0.0571]
[1761865676426,0.37211015,107760.0,107750.0,0.0571]
[1761865677342,0.47201479,107760.0,107750.0,0.0591]
[1761865679441,0.47201479,107760.0,107750.0,0.0581]
[1761865679641,0.47201479,107760.0,107750.0,0.0591]
[1761865679845,0.79269479,107760.0,107750.0,0.0591]
[1761865680143,0.03140111,107760.0,107750.0,0.22945452]
[1761865680342,9.413e-05,107760.0,107750.0,0.23225452]
[1761865682141,0.1952842,107780.0,107750.0,0.23225452]
[1761865682142,0.1952842,107780.0,107770.0,0.0571]
[1761865682341,0.42186282,107780.0,107770.0,0.0571]
[1761865682542,0.42186282,107780.0,107770.0,0.6571]
[1761865683244,0.42386282,107780.0,107770.0,0.6571]
[1761865683435,0.42486282,107780.0,107770.0,0.6571]
[1761865684038,0.19486282,107780.0,107770.0,0.6571]
[1761865684241,0.0245083,107780.0,107770.0,0.22745452]